[Event "Titled Tuesday Blitz May 03 Early 2022"]
[White "Lopez, Henry"]
[Black "Tanenbaum, Zachary"]
[WhiteFideId "5203830"]
[BlackFideId "2060850"]
[WhiteElo "2177"]
[BlackElo "2168"]
[Result "0-1"]
[Round "02"]
[TimeControl "180+1"]
[Date "2022.05.03"]
[WhiteClock "0:01:35"]
[BlackClock "0:01:45"]

1. d4 {[%clk 0:03:00]}  d5 {[%clk 0:02:59]} 2. Nf3 {[%clk 0:03:00]}  Bf5 {[%clk 0:02:59]} 3. c4 {[%clk 0:02:59]}  e6 {[%clk 0:03:00]} 4. Nc3 {[%clk 0:02:58]}  c6 {[%clk 0:03:00]} 5. e3 {[%clk 0:02:52]}  Nd7 {[%clk 0:03:00]} 6. Be2 {[%clk 0:02:49]}  Ngf6 {[%clk 0:03:00]} 7. Nh4 {[%clk 0:02:48]}  Be4 {[%clk 0:03:00]} 8. f3 {[%clk 0:02:48]}  Bg6 {[%clk 0:03:00]} 9. g3 {[%clk 0:02:48]}  Bd6 {[%clk 0:02:59]} 10. O-O {[%clk 0:02:46]}  O-O {[%clk 0:02:58]} 11. Nxg6 {[%clk 0:02:44]}  hxg6 {[%clk 0:02:58]} 12. f4 {[%clk 0:02:44]}  c5 {[%clk 0:02:56]} 13. cxd5 {[%clk 0:02:39]}  exd5 {[%clk 0:02:56]} 14. Bf3 {[%clk 0:02:36]}  cxd4 {[%clk 0:02:52]} 15. exd4 {[%clk 0:02:35]}  Nb6 {[%clk 0:02:43]} 16. Qd3 {[%clk 0:02:29]}  Re8 {[%clk 0:02:41]} 17. Kg2 {[%clk 0:02:29]}  Rc8 {[%clk 0:02:37]} 18. b3 {[%clk 0:02:27]}  Bb4 {[%clk 0:02:30]} 19. Bd2 {[%clk 0:02:23]}  Ne4 {[%clk 0:02:21]} 20. Rac1 {[%clk 0:01:49]}  Nxd2 {[%clk 0:02:12]} 21. Qxd2 {[%clk 0:01:48]}  Qc7 {[%clk 0:02:12]} 22. Qd3 {[%clk 0:01:35]}  Bxc3 {[%clk 0:02:06]} 23. Rc2 {[%clk 0:01:35]}  Re6 {[%clk 0:01:45]} 0-1


[Site "https://www.chess.com"]

[Event "Titled Tuesday Blitz May 03 Early 2022"]
[White "Lorparizangeneh, Shahin"]
[Black "Kanyamarala, Tarun"]
[WhiteFideId "12521604"]
[BlackFideId "45004714"]
[WhiteElo "2525"]
[BlackElo "2177"]
[Result "1-0"]
[Round "02"]
[TimeControl "180+1"]
[Date "2022.05.03"]
[WhiteClock "0:00:32"]
[BlackClock "0:00:14"]

1. c4 {[%clk 0:03:00]}  e5 {[%clk 0:02:57]} 2. Nc3 {[%clk 0:02:59]}  Bb4 {[%clk 0:02:56]} 3. Nd5 {[%clk 0:02:59]}  a5 {[%clk 0:02:56]} 4. a3 {[%clk 0:02:52]}  Bc5 {[%clk 0:02:55]} 5. e3 {[%clk 0:02:52]}  c6 {[%clk 0:02:49]} 6. d4 {[%clk 0:02:46]}  Ba7 {[%clk 0:02:47]} 7. Nc3 {[%clk 0:02:43]}  d6 {[%clk 0:02:47]} 8. Nf3 {[%clk 0:02:40]}  Nd7 {[%clk 0:02:45]} 9. d5 {[%clk 0:02:33]}  Qe7 {[%clk 0:02:32]} 10. Ne4 {[%clk 0:02:03]}  Nc5 {[%clk 0:02:11]} 11. Ng3 {[%clk 0:01:58]}  Nf6 {[%clk 0:02:05]} 12. b4 {[%clk 0:01:56]}  Nce4 {[%clk 0:01:59]} 13. Nxe4 {[%clk 0:01:34]}  Nxe4 {[%clk 0:01:58]} 14. Bb2 {[%clk 0:01:34]}  O-O {[%clk 0:01:50]} 15. Be2 {[%clk 0:01:28]}  f5 {[%clk 0:01:40]} 16. dxc6 {[%clk 0:01:24]}  bxc6 {[%clk 0:01:39]} 17. Qc2 {[%clk 0:01:17]}  Rb8 {[%clk 0:01:08]} 18. c5 {[%clk 0:01:09]}  axb4 {[%clk 0:01:02]} 19. cxd6 {[%clk 0:01:05]}  Nxd6 {[%clk 0:00:59]} 20. axb4 {[%clk 0:00:59]}  e4 {[%clk 0:00:49]} 21. Ne5 {[%clk 0:00:45]}  Rxb4 {[%clk 0:00:25]} 22. Nxc6 {[%clk 0:00:43]}  Qb7 {[%clk 0:00:16]} 23. Nxb4 {[%clk 0:00:35]}  Qxb4+ {[%clk 0:00:16]} 24. Bc3 {[%clk 0:00:34]}  Qc5 {[%clk 0:00:16]} 25. Qb3+ {[%clk 0:00:32]}  Kh8 {[%clk 0:00:15]} 26. Bd4 {[%clk 0:00:33]}  Qc7 {[%clk 0:00:14]} 27. Rxa7 {[%clk 0:00:32]}  Qc1+ {[%clk 0:00:14]} 28. Qd1 {[%clk 0:00:32]}  Qxd1+ {[%clk 0:00:14]} 29. Bxd1 {[%clk 0:00:32]} 1-0


[Site "https://www.chess.com"]

[Event "Titled Tuesday Blitz May 03 Early 2022"]
[White "Manon, Reja Neer"]
[Black "Olsen, Filip Boe"]
[WhiteFideId "10224009"]
[BlackFideId "1440640"]
[WhiteElo "1911"]
[BlackElo "2188"]
[Result "0-1"]
[Round "02"]
[TimeControl "180+1"]
[Date "2022.05.03"]
[WhiteClock "0:00:30"]
[BlackClock "0:00:21"]

1. e4 {[%clk 0:02:59]}  c5 {[%clk 0:02:59]} 2. Nf3 {[%clk 0:02:59]}  d6 {[%clk 0:02:58]} 3. d4 {[%clk 0:02:59]}  cxd4 {[%clk 0:02:59]} 4. Nxd4 {[%clk 0:03:00]}  Nf6 {[%clk 0:02:59]} 5. Nc3 {[%clk 0:03:00]}  a6 {[%clk 0:02:59]} 6. Be3 {[%clk 0:02:59]}  e5 {[%clk 0:02:58]} 7. Nb3 {[%clk 0:02:59]}  Be6 {[%clk 0:02:58]} 8. Be2 {[%clk 0:02:59]}  Be7 {[%clk 0:02:56]} 9. O-O {[%clk 0:02:59]}  O-O {[%clk 0:02:53]} 10. f4 {[%clk 0:02:59]}  exf4 {[%clk 0:02:37]} 11. Bxf4 {[%clk 0:02:59]}  Nc6 {[%clk 0:02:37]} 12. Qe1 {[%clk 0:02:59]}  d5 {[%clk 0:02:33]} 13. exd5 {[%clk 0:02:59]}  Nxd5 {[%clk 0:02:33]} 14. Nxd5 {[%clk 0:02:59]}  Bxd5 {[%clk 0:02:28]} 15. Rd1 {[%clk 0:02:55]}  Qb6+ {[%clk 0:02:27]} 16. Kh1 {[%clk 0:02:36]}  Rad8 {[%clk 0:02:22]} 17. Qg3 {[%clk 0:02:21]}  Kh8 {[%clk 0:02:09]} 18. Be3 {[%clk 0:02:11]}  Qb4 {[%clk 0:01:56]} 19. Rf4 {[%clk 0:01:58]}  Bd6 {[%clk 0:01:09]} 20. Rxb4 {[%clk 0:01:44]}  Bxg3 {[%clk 0:01:08]} 21. Rxb7 {[%clk 0:01:41]}  Be5 {[%clk 0:01:09]} 22. c4 {[%clk 0:01:30]}  Be4 {[%clk 0:00:44]} 23. Nc5 {[%clk 0:01:20]}  Bc2 {[%clk 0:00:41]} 24. Rc1 {[%clk 0:01:15]}  Bg6 {[%clk 0:00:38]} 25. Nxa6 {[%clk 0:01:13]}  Nd4 {[%clk 0:00:37]} 26. Bxd4 {[%clk 0:01:02]}  Bxd4 {[%clk 0:00:38]} 27. Bf3 {[%clk 0:01:00]}  Rfe8 {[%clk 0:00:33]} 28. h4 {[%clk 0:00:55]}  Be3 {[%clk 0:00:29]} 29. Rd1 {[%clk 0:00:50]}  Rxd1+ {[%clk 0:00:25]} 30. Bxd1 {[%clk 0:00:51]}  Bf2 {[%clk 0:00:26]} 31. h5 {[%clk 0:00:44]}  Bg3 {[%clk 0:00:22]} 32. Be2 {[%clk 0:00:31]}  Rxe2 {[%clk 0:00:21]} 33. Rb8+ {[%clk 0:00:30]}  Bxb8 {[%clk 0:00:21]} 0-1


[Site "https://www.chess.com"]

[Event "Titled Tuesday Blitz May 03 Early 2022"]
[White "Menna Barreto, Felipe Kubiaki"]
[Black "Kosteniuk, Alexandra"]
[WhiteFideId "2119757"]
[BlackFideId "4128125"]
[WhiteElo "2261"]
[BlackElo "2469"]
[Result "1-0"]
[Round "02"]
[TimeControl "180+1"]
[Date "2022.05.03"]
[WhiteClock "0:01:06"]
[BlackClock "0:01:14"]

1. Nf3 {[%clk 0:03:00]}  Nf6 {[%clk 0:02:59]} 2. d4 {[%clk 0:03:00]}  b6 {[%clk 0:02:58]} 3. c4 {[%clk 0:02:59]}  e6 {[%clk 0:02:55]} 4. a3 {[%clk 0:03:00]}  Bb7 {[%clk 0:02:55]} 5. Nc3 {[%clk 0:03:00]}  d5 {[%clk 0:02:55]} 6. Bg5 {[%clk 0:03:01]}  Be7 {[%clk 0:02:54]} 7. Qa4+ {[%clk 0:03:00]}  Bc6 {[%clk 0:02:53]} 8. Qc2 {[%clk 0:02:58]}  O-O {[%clk 0:02:49]} 9. Ne5 {[%clk 0:02:58]}  Bb7 {[%clk 0:02:49]} 10. e3 {[%clk 0:02:51]}  c5 {[%clk 0:02:49]} 11. dxc5 {[%clk 0:02:41]}  bxc5 {[%clk 0:02:47]} 12. Bd3 {[%clk 0:02:40]}  h6 {[%clk 0:02:47]} 13. Bf4 {[%clk 0:02:35]}  d4 {[%clk 0:02:45]} 14. exd4 {[%clk 0:02:33]}  Qxd4 {[%clk 0:02:33]} 15. Bg3 {[%clk 0:02:32]}  Bxg2 {[%clk 0:02:27]} 16. Rg1 {[%clk 0:02:32]}  Bf3 {[%clk 0:02:25]} 17. Nxf3 {[%clk 0:02:30]}  Qd8 {[%clk 0:02:22]} 18. O-O-O {[%clk 0:02:23]}  Nbd7 {[%clk 0:02:20]} 19. Ne5 {[%clk 0:02:23]}  Qc8 {[%clk 0:02:11]} 20. Bf4 {[%clk 0:02:10]}  Kh8 {[%clk 0:02:10]} 21. Bxh6 {[%clk 0:01:34]}  Nh5 {[%clk 0:01:51]} 22. Nxd7 {[%clk 0:01:28]}  gxh6 {[%clk 0:01:48]} 23. Nxf8 {[%clk 0:01:27]}  Qxf8 {[%clk 0:01:48]} 24. Kb1 {[%clk 0:01:27]}  Rb8 {[%clk 0:01:47]} 25. Be2 {[%clk 0:01:19]}  Nf4 {[%clk 0:01:40]} 26. Rg4 {[%clk 0:01:16]}  Nxe2 {[%clk 0:01:38]} 27. Qxe2 {[%clk 0:01:14]}  Bf6 {[%clk 0:01:38]} 28. Rd3 {[%clk 0:01:14]}  Bd4 {[%clk 0:01:31]} 29. Rgxd4 {[%clk 0:01:11]}  cxd4 {[%clk 0:01:31]} 30. Rxd4 {[%clk 0:01:12]}  Qg7 {[%clk 0:01:30]} 31. Qd2 {[%clk 0:01:11]}  Qf6 {[%clk 0:01:25]} 32. Ka2 {[%clk 0:01:11]}  Kg7 {[%clk 0:01:18]} 33. Ne4 {[%clk 0:01:11]}  Qe5 {[%clk 0:01:18]} 34. Nd6 {[%clk 0:01:11]}  f5 {[%clk 0:01:15]} 35. Nb5 {[%clk 0:01:10]}  a6 {[%clk 0:01:13]} 36. Rd7+ {[%clk 0:01:10]}  Kf6 {[%clk 0:01:14]} 37. Qxh6# {[%clk 0:01:06]} 1-0


[Site "https://www.chess.com"]

[Event "Titled Tuesday Blitz May 03 Early 2022"]
[White "Mikhalsky, Vladimir"]
[Black "Jones, Gawain C B"]
[WhiteFideId "14144352"]
[BlackFideId "409561"]
[WhiteElo "2301"]
[BlackElo "2657"]
[Result "0-1"]
[Round "02"]
[TimeControl "180+1"]
[Date "2022.05.03"]
[WhiteClock "0:00:06"]
[BlackClock "0:00:19"]

1. c4 {[%clk 0:03:00]}  e5 {[%clk 0:02:59]} 2. Nc3 {[%clk 0:03:00]}  Bb4 {[%clk 0:02:59]} 3. Nd5 {[%clk 0:02:59]}  Bc5 {[%clk 0:02:58]} 4. g3 {[%clk 0:02:59]}  c6 {[%clk 0:02:57]} 5. Nc3 {[%clk 0:02:59]}  d5 {[%clk 0:02:57]} 6. cxd5 {[%clk 0:02:53]}  cxd5 {[%clk 0:02:57]} 7. Bg2 {[%clk 0:02:54]}  Nf6 {[%clk 0:02:57]} 8. Qb3 {[%clk 0:02:28]}  Be6 {[%clk 0:02:43]} 9. Qxb7 {[%clk 0:02:25]}  Nbd7 {[%clk 0:02:42]} 10. Nf3 {[%clk 0:02:06]}  O-O {[%clk 0:02:35]} 11. O-O {[%clk 0:02:02]}  a5 {[%clk 0:02:10]} 12. Ng5 {[%clk 0:01:59]}  Rb8 {[%clk 0:02:07]} 13. Nxe6 {[%clk 0:01:50]}  fxe6 {[%clk 0:02:04]} 14. Qa6 {[%clk 0:01:40]}  Qe8 {[%clk 0:01:47]} 15. e3 {[%clk 0:01:34]}  e4 {[%clk 0:01:41]} 16. d4 {[%clk 0:01:28]}  Bb4 {[%clk 0:01:38]} 17. Bd2 {[%clk 0:01:20]}  Nb6 {[%clk 0:01:33]} 18. b3 {[%clk 0:01:16]}  Qh5 {[%clk 0:01:18]} 19. h3 {[%clk 0:01:14]}  Nfd7 {[%clk 0:01:19]} 20. Rad1 {[%clk 0:01:04]}  Rbc8 {[%clk 0:01:14]} 21. Rc1 {[%clk 0:00:59]}  h6 {[%clk 0:01:08]} 22. Nb1 {[%clk 0:00:59]}  Ra8 {[%clk 0:01:05]} 23. Qb5 {[%clk 0:00:57]}  Rf7 {[%clk 0:00:54]} 24. a3 {[%clk 0:00:53]}  Bxd2 {[%clk 0:00:46]} 25. Nxd2 {[%clk 0:00:53]}  a4 {[%clk 0:00:46]} 26. b4 {[%clk 0:00:51]}  Raf8 {[%clk 0:00:43]} 27. Rc6 {[%clk 0:00:44]}  e5 {[%clk 0:00:43]} 28. Rxb6 {[%clk 0:00:43]}  Nxb6 {[%clk 0:00:35]} 29. Qxb6 {[%clk 0:00:43]}  Qe2 {[%clk 0:00:36]} 30. Bxe4 {[%clk 0:00:28]}  Rxf2 {[%clk 0:00:29]} 31. Bxd5+ {[%clk 0:00:27]}  Kh8 {[%clk 0:00:30]} 32. Bf3 {[%clk 0:00:16]}  Rxf1+ {[%clk 0:00:21]} 33. Nxf1 {[%clk 0:00:15]}  Rxf3 {[%clk 0:00:19]} 34. Nh2 {[%clk 0:00:06]}  Qe1+ {[%clk 0:00:19]} 35. Kg2 {[%clk 0:00:06]}  Rf2# {[%clk 0:00:19]} 0-1


[Site "https://www.chess.com"]

[Event "Titled Tuesday Blitz May 03 Early 2022"]
[White "Mitrabha, Guha"]
[Black "Navalgund, Niranjan"]
[WhiteFideId "5057000"]
[BlackFideId "5030854"]
[WhiteElo "2468"]
[BlackElo "2290"]
[Result "0-1"]
[Round "02"]
[TimeControl "180+1"]
[Date "2022.05.03"]
[WhiteClock "0:00:16"]
[BlackClock "0:00:08"]

1. Nf3 {[%clk 0:03:00]}  Nf6 {[%clk 0:02:52]} 2. d4 {[%clk 0:03:00]}  e6 {[%clk 0:02:51]} 3. Bf4 {[%clk 0:02:59]}  Bd6 {[%clk 0:02:50]} 4. Bg3 {[%clk 0:02:57]}  O-O {[%clk 0:02:48]} 5. e3 {[%clk 0:02:57]}  b6 {[%clk 0:02:41]} 6. Bd3 {[%clk 0:02:57]}  Bb7 {[%clk 0:02:41]} 7. Nbd2 {[%clk 0:02:57]}  Bxg3 {[%clk 0:02:30]} 8. hxg3 {[%clk 0:02:57]}  d5 {[%clk 0:02:30]} 9. Ne5 {[%clk 0:02:56]}  g6 {[%clk 0:02:26]} 10. f4 {[%clk 0:02:54]}  Nbd7 {[%clk 0:02:25]} 11. Qf3 {[%clk 0:02:54]}  h5 {[%clk 0:02:18]} 12. O-O-O {[%clk 0:02:52]}  Kg7 {[%clk 0:02:18]} 13. Qe2 {[%clk 0:02:44]}  c5 {[%clk 0:02:17]} 14. c3 {[%clk 0:02:43]}  c4 {[%clk 0:02:17]} 15. Bc2 {[%clk 0:02:42]}  Nxe5 {[%clk 0:02:16]} 16. fxe5 {[%clk 0:02:42]}  Ng4 {[%clk 0:02:17]} 17. Nf3 {[%clk 0:02:41]}  f5 {[%clk 0:02:14]} 18. exf6+ {[%clk 0:02:37]}  Rxf6 {[%clk 0:02:14]} 19. Nh2 {[%clk 0:02:33]}  Rf2 {[%clk 0:02:13]} 20. Qe1 {[%clk 0:02:30]}  Qf6 {[%clk 0:02:06]} 21. Nxg4 {[%clk 0:02:29]}  hxg4 {[%clk 0:02:07]} 22. Qg1 {[%clk 0:02:27]}  Rh8 {[%clk 0:01:51]} 23. Rxh8 {[%clk 0:01:43]}  Kxh8 {[%clk 0:01:11]} 24. Kb1 {[%clk 0:01:42]}  Kg7 {[%clk 0:01:10]} 25. a3 {[%clk 0:01:42]}  b5 {[%clk 0:01:07]} 26. Rc1 {[%clk 0:01:40]}  a5 {[%clk 0:01:06]} 27. Qh2 {[%clk 0:01:38]}  Rf1 {[%clk 0:00:48]} 28. Qh4 {[%clk 0:01:34]}  Rxc1+ {[%clk 0:00:47]} 29. Kxc1 {[%clk 0:01:34]}  Qf1+ {[%clk 0:00:44]} 30. Bd1 {[%clk 0:01:33]}  Bc6 {[%clk 0:00:14]} 31. Qe7+ {[%clk 0:01:22]}  Qf7 {[%clk 0:00:14]} 32. Qd6 {[%clk 0:01:20]}  Be8 {[%clk 0:00:13]} 33. Qe5+ {[%clk 0:01:16]}  Qf6 {[%clk 0:00:13]} 34. Qc7+ {[%clk 0:01:15]}  Kh6 {[%clk 0:00:12]} 35. Bxg4 {[%clk 0:01:14]}  Qf1+ {[%clk 0:00:11]} 36. Bd1 {[%clk 0:01:14]}  g5 {[%clk 0:00:11]} 37. Qe7 {[%clk 0:01:08]}  Bh5 {[%clk 0:00:11]} 38. Qxe6+ {[%clk 0:01:05]}  Kg7 {[%clk 0:00:10]} 39. Qe5+ {[%clk 0:01:00]}  Kh6 {[%clk 0:00:10]} 40. Qd6+ {[%clk 0:00:59]}  Bg6 {[%clk 0:00:09]} 41. Qxd5 {[%clk 0:00:54]}  Qd3 {[%clk 0:00:09]} 42. e4 {[%clk 0:00:20]}  Bxe4 {[%clk 0:00:09]} 43. Qe6+ {[%clk 0:00:19]}  Bg6 {[%clk 0:00:09]} 44. Qh3+ {[%clk 0:00:19]}  Kg7 {[%clk 0:00:09]} 45. Qd7+ {[%clk 0:00:19]}  Kh6 {[%clk 0:00:10]} 46. Qxb5 {[%clk 0:00:16]}  Qe3# {[%clk 0:00:08]} 0-1


[Site "https://www.chess.com"]

[Event "Titled Tuesday Blitz May 03 Early 2022"]
[White "Murthy, Pappu"]
[Black "Bach, Ngoc Thuy Duong"]
[WhiteFideId "2013401"]
[BlackFideId "12408956"]
[WhiteElo "2035"]
[BlackElo "1862"]
[Result "0-1"]
[Round "02"]
[TimeControl "180+1"]
[Date "2022.05.03"]
[WhiteClock "0:00:23"]
[BlackClock "0:00:13"]

1. c4 {[%clk 0:03:00]}  e5 {[%clk 0:02:59]} 2. Nc3 {[%clk 0:02:59]}  Nf6 {[%clk 0:02:56]} 3. g3 {[%clk 0:02:59]}  d5 {[%clk 0:02:55]} 4. cxd5 {[%clk 0:02:58]}  Nxd5 {[%clk 0:02:56]} 5. Bg2 {[%clk 0:02:58]}  Nb6 {[%clk 0:02:57]} 6. e3 {[%clk 0:02:58]}  Be7 {[%clk 0:02:56]} 7. Nge2 {[%clk 0:02:58]}  Nc6 {[%clk 0:02:26]} 8. O-O {[%clk 0:02:56]}  O-O {[%clk 0:02:25]} 9. f4 {[%clk 0:02:48]}  Bg4 {[%clk 0:02:05]} 10. fxe5 {[%clk 0:02:44]}  Nxe5 {[%clk 0:02:04]} 11. d4 {[%clk 0:02:43]}  Nc6 {[%clk 0:01:56]} 12. Qc2 {[%clk 0:02:40]}  Bh5 {[%clk 0:01:36]} 13. Nf4 {[%clk 0:02:32]}  Bg6 {[%clk 0:01:31]} 14. Nxg6 {[%clk 0:02:31]}  hxg6 {[%clk 0:01:31]} 15. b3 {[%clk 0:02:31]}  Bf6 {[%clk 0:01:24]} 16. Bb2 {[%clk 0:02:31]}  Re8 {[%clk 0:01:22]} 17. Qf2 {[%clk 0:02:27]}  Qd7 {[%clk 0:01:01]} 18. Rad1 {[%clk 0:02:21]}  Bg5 {[%clk 0:00:44]} 19. Rde1 {[%clk 0:02:04]}  Nb4 {[%clk 0:00:40]} 20. Qd2 {[%clk 0:01:41]}  N6d5 {[%clk 0:00:34]} 21. Nxd5 {[%clk 0:01:35]}  Nxd5 {[%clk 0:00:34]} 22. Bxd5 {[%clk 0:01:33]}  Qxd5 {[%clk 0:00:35]} 23. Qf2 {[%clk 0:01:31]}  Re4 {[%clk 0:00:26]} 24. Re2 {[%clk 0:01:27]}  Rae8 {[%clk 0:00:25]} 25. Rfe1 {[%clk 0:01:27]}  c6 {[%clk 0:00:24]} 26. Bc1 {[%clk 0:01:28]}  Bd8 {[%clk 0:00:16]} 27. Qg2 {[%clk 0:01:18]}  Qe6 {[%clk 0:00:15]} 28. Rf1 {[%clk 0:01:12]}  Bb6 {[%clk 0:00:15]} 29. Qf3 {[%clk 0:00:54]}  f6 {[%clk 0:00:15]} 30. Bb2 {[%clk 0:00:49]}  Rxe3 {[%clk 0:00:14]} 31. Rxe3 {[%clk 0:00:49]}  Qxe3+ {[%clk 0:00:14]} 32. Qxe3 {[%clk 0:00:49]}  Rxe3 {[%clk 0:00:15]} 33. Rd1 {[%clk 0:00:48]}  Re2 {[%clk 0:00:15]} 34. Bc3 {[%clk 0:00:43]}  Rxa2 {[%clk 0:00:16]} 35. Kh1 {[%clk 0:00:41]}  Rc2 {[%clk 0:00:15]} 36. Ba1 {[%clk 0:00:41]}  Kf7 {[%clk 0:00:16]} 37. h4 {[%clk 0:00:39]}  Ke6 {[%clk 0:00:15]} 38. g4 {[%clk 0:00:34]}  Kd5 {[%clk 0:00:15]} 39. g5 {[%clk 0:00:34]}  f5 {[%clk 0:00:15]} 40. Re1 {[%clk 0:00:32]}  Ba5 {[%clk 0:00:14]} 41. Re5+ {[%clk 0:00:31]}  Kd6 {[%clk 0:00:14]} 42. Re8 {[%clk 0:00:24]}  Rc1+ {[%clk 0:00:14]} 43. Kg2 {[%clk 0:00:25]}  Rxa1 {[%clk 0:00:14]} 44. Kf3 {[%clk 0:00:26]}  Rf1+ {[%clk 0:00:14]} 45. Kg2 {[%clk 0:00:26]}  Re1 {[%clk 0:00:14]} 46. Rd8+ {[%clk 0:00:23]}  Bxd8 {[%clk 0:00:13]} 47. Kf2 {[%clk 0:00:23]}  Re4 {[%clk 0:00:13]} 48. Kf3 {[%clk 0:00:23]}  Kd5 {[%clk 0:00:13]} 49. b4 {[%clk 0:00:22]}  Rxh4 {[%clk 0:00:13]} 50. b5 {[%clk 0:00:23]}  cxb5 {[%clk 0:00:13]} 51. Kg3 {[%clk 0:00:24]}  Rxd4 {[%clk 0:00:13]} 52. Kf3 {[%clk 0:00:24]}  Bxg5 {[%clk 0:00:13]} 53. Ke2 {[%clk 0:00:24]}  Ke4 {[%clk 0:00:13]} 54. Ke1 {[%clk 0:00:24]}  Rd2 {[%clk 0:00:13]} 55. Kf1 {[%clk 0:00:23]}  Kf3 {[%clk 0:00:13]} 56. Kg1 {[%clk 0:00:24]}  Bf4 {[%clk 0:00:12]} 57. Kh1 {[%clk 0:00:23]}  Rd1# {[%clk 0:00:13]} 0-1


[Site "https://www.chess.com"]

[Event "Titled Tuesday Blitz May 03 Early 2022"]
[White "Namitbir Singh Walia"]
[Black "Andreev, Eduard"]
[WhiteFideId "35071068"]
[BlackFideId "14103400"]
[WhiteElo "1565"]
[BlackElo "2382"]
[Result "0-1"]
[Round "02"]
[TimeControl "180+1"]
[Date "2022.05.03"]
[WhiteClock "0:00:13"]
[BlackClock "0:01:45"]

1. d4 {[%clk 0:03:00]}  g6 {[%clk 0:03:00]} 2. c4 {[%clk 0:02:59]}  Bg7 {[%clk 0:03:01]} 3. Nf3 {[%clk 0:03:00]}  d6 {[%clk 0:03:02]} 4. g3 {[%clk 0:03:00]}  Nf6 {[%clk 0:03:03]} 5. Bg2 {[%clk 0:03:00]}  O-O {[%clk 0:03:04]} 6. O-O {[%clk 0:03:00]}  Nbd7 {[%clk 0:03:04]} 7. Nc3 {[%clk 0:02:57]}  e5 {[%clk 0:03:04]} 8. e4 {[%clk 0:02:56]}  c6 {[%clk 0:03:04]} 9. h3 {[%clk 0:02:56]}  Qa5 {[%clk 0:03:03]} 10. Re1 {[%clk 0:02:51]}  Re8 {[%clk 0:03:01]} 11. dxe5 {[%clk 0:02:24]}  dxe5 {[%clk 0:02:59]} 12. Qc2 {[%clk 0:02:22]}  Nc5 {[%clk 0:02:56]} 13. Be3 {[%clk 0:02:11]}  Ne6 {[%clk 0:02:56]} 14. Red1 {[%clk 0:02:00]}  Qc7 {[%clk 0:02:48]} 15. Ne2 {[%clk 0:01:52]}  c5 {[%clk 0:02:43]} 16. Nc3 {[%clk 0:01:42]}  Nd4 {[%clk 0:02:42]} 17. Bxd4 {[%clk 0:01:39]}  cxd4 {[%clk 0:02:43]} 18. Nd5 {[%clk 0:01:36]}  Nxd5 {[%clk 0:02:42]} 19. exd5 {[%clk 0:01:35]}  Bf5 {[%clk 0:02:42]} 20. Qe2 {[%clk 0:01:34]}  d3 {[%clk 0:02:38]} 21. Qe3 {[%clk 0:01:23]}  Qxc4 {[%clk 0:02:37]} 22. Nd2 {[%clk 0:01:10]}  Qb5 {[%clk 0:02:33]} 23. Ne4 {[%clk 0:00:53]}  Qxb2 {[%clk 0:02:24]} 24. Qxd3 {[%clk 0:00:32]}  Qd4 {[%clk 0:02:12]} 25. Qb5 {[%clk 0:00:28]}  Qb6 {[%clk 0:02:11]} 26. Qxb6 {[%clk 0:00:23]}  axb6 {[%clk 0:02:12]} 27. Nd6 {[%clk 0:00:23]}  Re7 {[%clk 0:02:07]} 28. Rac1 {[%clk 0:00:22]}  Bh6 {[%clk 0:02:03]} 29. Rc3 {[%clk 0:00:18]}  Bd7 {[%clk 0:01:57]} 30. Nxb7 {[%clk 0:00:15]}  Ba4 {[%clk 0:01:52]} 31. d6 {[%clk 0:00:15]}  Rd7 {[%clk 0:01:49]} 32. Re1 {[%clk 0:00:15]}  Bd2 {[%clk 0:01:46]} 33. Rce3 {[%clk 0:00:14]}  Bxe1 {[%clk 0:01:45]} 34. Rxe1 {[%clk 0:00:14]}  Ra7 {[%clk 0:01:45]} 35. Rxe5 {[%clk 0:00:14]}  Raxb7 {[%clk 0:01:44]} 36. Bxb7 {[%clk 0:00:15]}  Rxb7 {[%clk 0:01:45]} 37. Re7 {[%clk 0:00:13]} 0-1


[Site "https://www.chess.com"]

[Event "Titled Tuesday Blitz May 03 Early 2022"]
[White "Nozdrachev, Leonid"]
[Black "Bychkov, Vladimir"]
[WhiteFideId "24113433"]
[BlackFideId "24151513"]
[WhiteElo "2242"]
[BlackElo "2197"]
[Result "1-0"]
[Round "02"]
[TimeControl "180+1"]
[Date "2022.05.03"]
[WhiteClock "0:00:38"]
[BlackClock "0:00:18"]

1. e4 {[%clk 0:03:00]}  c6 {[%clk 0:02:57]} 2. b3 {[%clk 0:02:57]}  d5 {[%clk 0:02:57]} 3. Bb2 {[%clk 0:02:57]}  Nd7 {[%clk 0:02:55]} 4. Nc3 {[%clk 0:02:56]}  d4 {[%clk 0:02:54]} 5. Nce2 {[%clk 0:02:53]}  e5 {[%clk 0:02:42]} 6. f4 {[%clk 0:02:53]}  d3 {[%clk 0:02:35]} 7. cxd3 {[%clk 0:02:50]}  Nc5 {[%clk 0:02:35]} 8. Nc1 {[%clk 0:02:44]}  exf4 {[%clk 0:02:34]} 9. Nf3 {[%clk 0:02:34]}  Bg4 {[%clk 0:02:25]} 10. Qe2 {[%clk 0:02:34]}  Ne6 {[%clk 0:02:15]} 11. Qf2 {[%clk 0:02:27]}  Bxf3 {[%clk 0:02:00]} 12. Qxf3 {[%clk 0:02:24]}  Ne7 {[%clk 0:01:55]} 13. d4 {[%clk 0:02:20]}  Nxd4 {[%clk 0:01:54]} 14. Qd1 {[%clk 0:02:10]}  Ng6 {[%clk 0:01:50]} 15. Bc4 {[%clk 0:02:06]}  Qh4+ {[%clk 0:01:44]} 16. Kf1 {[%clk 0:02:05]}  O-O-O {[%clk 0:01:25]} 17. Ne2 {[%clk 0:01:54]}  Bc5 {[%clk 0:01:20]} 18. b4 {[%clk 0:01:47]}  f3 {[%clk 0:01:12]} 19. bxc5 {[%clk 0:01:39]}  Nxe2 {[%clk 0:01:08]} 20. Bxe2 {[%clk 0:01:34]}  fxe2+ {[%clk 0:00:52]} 21. Qxe2 {[%clk 0:01:35]}  Nf4 {[%clk 0:00:51]} 22. Qe1 {[%clk 0:00:57]}  Qxe1+ {[%clk 0:00:46]} 23. Rxe1 {[%clk 0:00:58]}  Rxd2 {[%clk 0:00:46]} 24. Bc1 {[%clk 0:00:55]}  Rxg2 {[%clk 0:00:46]} 25. Bxf4 {[%clk 0:00:54]}  Rxa2 {[%clk 0:00:46]} 26. Rg1 {[%clk 0:00:49]}  g6 {[%clk 0:00:46]} 27. Rg3 {[%clk 0:00:47]}  a5 {[%clk 0:00:44]} 28. Rf3 {[%clk 0:00:44]}  a4 {[%clk 0:00:42]} 29. Bd6 {[%clk 0:00:43]}  f5 {[%clk 0:00:37]} 30. exf5 {[%clk 0:00:41]}  gxf5 {[%clk 0:00:38]} 31. Re7 {[%clk 0:00:40]}  Rg8 {[%clk 0:00:33]} 32. Rc7+ {[%clk 0:00:39]}  Kd8 {[%clk 0:00:32]} 33. Rxb7 {[%clk 0:00:39]}  Rgg2 {[%clk 0:00:30]} 34. Rxf5 {[%clk 0:00:39]}  Kc8 {[%clk 0:00:18]} 35. Rc7+ {[%clk 0:00:38]} 1-0


[Site "https://www.chess.com"]